[Event "Late-Titled-Tuesday-Blitz-May-14-2024"]
[Site "Chess.com"]
[Date "2024.05.14"]
[Round "1"]
[White "zacachess"]
[Black "Umumba_FM"]
[Result "0-1"]
[WhiteElo "2367"]
[BlackElo "2683"]
[TimeControl "180+1"]
[EndTime "14:07:38 PDT"]
[Termination "Umumba_FM won on time"]

1. e4 {[%clk 0:02:59.9]} 1... e5 {[%clk 0:02:56.3]} 2. Nf3 {[%clk 0:02:59.6]}
2... d6 {[%clk 0:02:56.9]} 3. d4 {[%clk 0:02:59.5]} 3... exd4 {[%clk 0:02:57.8]}
4. Nxd4 {[%clk 0:03:00.2]} 4... Nf6 {[%clk 0:02:58.4]} 5. Nc3 {[%clk 0:03:00.5]}
5... Be7 {[%clk 0:02:58]} 6. Bf4 {[%clk 0:03:00.7]} 6... O-O {[%clk 0:02:58.3]}
7. Qd2 {[%clk 0:03:00.8]} 7... c6 {[%clk 0:02:54.8]} 8. O-O-O {[%clk 0:02:59.9]}
8... b5 {[%clk 0:02:55.4]} 9. f3 {[%clk 0:02:59.6]} 9... b4 {[%clk 0:02:48.7]}
10. Nce2 {[%clk 0:02:43.1]} 10... c5 {[%clk 0:02:48.9]} 11. Nf5 {[%clk
0:02:02.9]} 11... Bxf5 {[%clk 0:02:48.3]} 12. exf5 {[%clk 0:02:03.7]} 12... d5
{[%clk 0:02:48.7]} 13. g4 {[%clk 0:02:00]} 13... d4 {[%clk 0:02:49.1]} 14. Ng3
{[%clk 0:01:59.6]} 14... Nd5 {[%clk 0:02:48.8]} 15. Kb1 {[%clk 0:01:56.9]} 15...
Nc6 {[%clk 0:02:47.2]} 16. Bc4 {[%clk 0:01:51.4]} 16... Nxf4 {[%clk 0:02:47.1]}
17. Qxf4 {[%clk 0:01:50.9]} 17... Bg5 {[%clk 0:02:40]} 18. Qe4 {[%clk 0:01:49]}
18... Na5 {[%clk 0:02:39.4]} 19. Qd3 {[%clk 0:01:40.9]} 19... Re8 {[%clk
0:02:31.1]} 20. Ne4 {[%clk 0:01:40.4]} 20... Rc8 {[%clk 0:02:23.3]} 21. h4
{[%clk 0:01:23.8]} 21... Bf4 {[%clk 0:02:17.5]} 22. g5 {[%clk 0:01:18.1]} 22...
Nxc4 {[%clk 0:02:07.9]} 23. Qxc4 {[%clk 0:01:17.7]} 23... Re5 {[%clk 0:02:08.4]}
24. f6 {[%clk 0:01:13.8]} 24... Qd5 {[%clk 0:02:03.8]} 25. Qxd5 {[%clk
0:00:54.2]} 25... Rxd5 {[%clk 0:02:03.4]} 26. fxg7 {[%clk 0:00:45]} 26... Kxg7
{[%clk 0:02:04.3]} 27. Nf6 {[%clk 0:00:42.8]} 27... Rf5 {[%clk 0:02:02.6]} 28.
Rhe1 {[%clk 0:00:35.5]} 28... Bg3 {[%clk 0:01:57.5]} 29. Nh5+ {[%clk 0:00:27.5]}
29... Kg6 {[%clk 0:01:54.6]} 30. Nxg3 {[%clk 0:00:28.3]} 30... Rxf3 {[%clk
0:01:55]} 31. Ne4 {[%clk 0:00:24.8]} 31... Rf4 {[%clk 0:01:50.3]} 32. Nd6 {[%clk
0:00:20.4]} 32... Rc6 {[%clk 0:01:44.4]} 33. Re4 {[%clk 0:00:19.8]} 33... Rf2
{[%clk 0:01:40.2]} 34. Nc4 {[%clk 0:00:16.8]} 34... Re6 {[%clk 0:01:34.9]} 35.
Rxe6+ {[%clk 0:00:15.2]} 35... fxe6 {[%clk 0:01:35.8]} 36. b3 {[%clk 0:00:14.1]}
36... Rf4 {[%clk 0:01:34.2]} 37. Re1 {[%clk 0:00:14.1]} 37... Rxh4 {[%clk
0:01:29.6]} 38. Rxe6+ {[%clk 0:00:14.1]} 38... Kxg5 {[%clk 0:01:30.5]} 39. Re7
{[%clk 0:00:13.9]} 39... Rh1+ {[%clk 0:01:28.3]} 40. Kb2 {[%clk 0:00:13.6]}
40... Rh2 {[%clk 0:01:28.4]} 41. Re5+ {[%clk 0:00:12.3]} 41... Kf6 {[%clk
0:01:27.1]} 42. Rxc5 {[%clk 0:00:12.4]} 42... d3 {[%clk 0:01:27.3]} 43. Ne3
{[%clk 0:00:12.5]} 43... d2 {[%clk 0:01:25.9]} 44. Rd5 {[%clk 0:00:11]} 44...
Ke6 {[%clk 0:01:25.9]} 45. Rd3 {[%clk 0:00:09.6]} 45... Rf2 {[%clk 0:01:15.9]}
46. Nc4 {[%clk 0:00:09]} 46... h5 {[%clk 0:01:16.4]} 47. Nxd2 {[%clk 0:00:09.2]}
47... h4 {[%clk 0:01:15]} 48. Ne4 {[%clk 0:00:09]} 48... Rh2 {[%clk 0:01:13.1]}
49. Ng5+ {[%clk 0:00:05.4]} 49... Ke7 {[%clk 0:01:13.3]} 50. Nh3 {[%clk
0:00:06.3]} 50... a5 {[%clk 0:01:13.1]} 51. Rf3 {[%clk 0:00:04.7]} 51... Kd6
{[%clk 0:01:11.9]} 52. Nf4 {[%clk 0:00:05]} 52... Ke5 {[%clk 0:01:11]} 53. Rh3
{[%clk 0:00:05.4]} 53... Rf2 {[%clk 0:01:09.2]} 54. Rxh4 {[%clk 0:00:04.8]}
54... Rxf4 {[%clk 0:01:09.3]} 55. Rxf4 {[%clk 0:00:05]} 55... Kxf4 {[%clk
0:01:10.2]} 56. c3 {[%clk 0:00:05.4]} 56... Ke4 {[%clk 0:00:55.9]} 57. c4 {[%clk
0:00:04.3]} 57... Kd4 {[%clk 0:00:56.3]} 58. a3 {[%clk 0:00:03.4]} 58... Ke4
{[%clk 0:00:51.4]} 0-1

[Event "Late-Titled-Tuesday-Blitz-May-14-2024"]
[Site "Chess.com"]
[Date "2024.05.14"]
[Round "1"]
[White "DonPreuss"]
[Black "Nf3c5"]
[Result "1-0"]
[WhiteElo "2186"]
[BlackElo "2557"]
[TimeControl "180+1"]
[EndTime "14:07:38 PDT"]
[Termination "DonPreuss won by checkmate"]

1. d4 {[%clk 0:02:58.7]} 1... Nf6 {[%clk 0:02:27.3]} 2. Nc3 {[%clk 0:02:58.1]}
2... d5 {[%clk 0:02:26.6]} 3. e4 {[%clk 0:02:57.5]} 3... dxe4 {[%clk 0:02:25.9]}
4. f3 {[%clk 0:02:57.4]} 4... e5 {[%clk 0:02:20.2]} 5. dxe5 {[%clk 0:02:56.9]}
5... Qxd1+ {[%clk 0:02:19]} 6. Kxd1 {[%clk 0:02:57.2]} 6... Nfd7 {[%clk
0:02:14.8]} 7. Nd5 {[%clk 0:02:57.3]} 7... Kd8 {[%clk 0:02:10]} 8. Bg5+ {[%clk
0:02:57.9]} 8... f6 {[%clk 0:01:49.9]} 9. exf6 {[%clk 0:02:58.5]} 9... gxf6
{[%clk 0:01:31]} 10. Nxf6 {[%clk 0:02:59]} 10... Be7 {[%clk 0:01:29.8]} 11. Nxe4
{[%clk 0:02:59.6]} 11... Rg8 {[%clk 0:01:24]} 12. Bxe7+ {[%clk 0:02:38.6]} 12...
Kxe7 {[%clk 0:01:24.9]} 13. g3 {[%clk 0:02:35.5]} 13... Ne5 {[%clk 0:01:20.7]}
14. f4 {[%clk 0:02:14.3]} 14... Ng4 {[%clk 0:01:16.6]} 15. h3 {[%clk 0:01:58.8]}
15... Ne3+ {[%clk 0:01:11.7]} 16. Ke2 {[%clk 0:01:59]} 16... Nxc2 {[%clk
0:01:10.9]} 17. Rc1 {[%clk 0:01:55.3]} 17... Nd4+ {[%clk 0:01:10.7]} 18. Kd3
{[%clk 0:01:45.1]} 18... Nbc6 {[%clk 0:01:09.3]} 19. g4 {[%clk 0:01:43]} 19...
Rd8 {[%clk 0:01:07.1]} 20. Ke3 {[%clk 0:01:39]} 20... Be6 {[%clk 0:01:07.7]} 21.
Bc4 {[%clk 0:01:34.3]} 21... Nb4 {[%clk 0:00:52.4]} 22. Bxe6 {[%clk 0:01:32.6]}
22... Nbc2+ {[%clk 0:00:49.3]} 23. Kd2 {[%clk 0:01:16.8]} 23... Nb3+ {[%clk
0:00:46.5]} 24. Kxc2 {[%clk 0:01:15.7]} 24... Nxc1 {[%clk 0:00:47.1]} 25. Kxc1
{[%clk 0:01:16]} 25... Kxe6 {[%clk 0:00:46.9]} 26. Nf3 {[%clk 0:01:11.4]} 26...
h6 {[%clk 0:00:47.3]} 27. f5+ {[%clk 0:01:03.9]} 27... Kd5 {[%clk 0:00:45.6]}
28. Nc3+ {[%clk 0:01:03.4]} 28... Kc6 {[%clk 0:00:45.7]} 29. Rd1 {[%clk
0:01:01.2]} 29... Rxd1+ {[%clk 0:00:43.4]} 30. Kxd1 {[%clk 0:01:02.1]} 30... Re8
{[%clk 0:00:43.1]} 31. Kd2 {[%clk 0:01:01.3]} 31... b5 {[%clk 0:00:43.5]} 32. a3
{[%clk 0:01:00.5]} 32... Kb6 {[%clk 0:00:42.7]} 33. h4 {[%clk 0:00:58.5]} 33...
a5 {[%clk 0:00:42.6]} 34. g5 {[%clk 0:00:57.1]} 34... b4 {[%clk 0:00:42]} 35.
axb4 {[%clk 0:00:55.7]} 35... axb4 {[%clk 0:00:42.9]} 36. Nd5+ {[%clk
0:00:54.7]} 36... Kc5 {[%clk 0:00:43.3]} 37. Nf6 {[%clk 0:00:52.6]} 37... Rd8+
{[%clk 0:00:41.1]} 38. Kc2 {[%clk 0:00:50.6]} 38... b3+ {[%clk 0:00:39.5]} 39.
Kc3 {[%clk 0:00:49.1]} 39... hxg5 {[%clk 0:00:31.2]} 40. hxg5 {[%clk 0:00:49]}
40... Rd1 {[%clk 0:00:31.7]} 41. g6 {[%clk 0:00:47.5]} 41... Rf1 {[%clk
0:00:32.3]} 42. Ne4+ {[%clk 0:00:45.5]} 42... Kd5 {[%clk 0:00:31.8]} 43. Neg5
{[%clk 0:00:39]} 43... Ra1 {[%clk 0:00:21.7]} 44. f6 {[%clk 0:00:33.7]} 44...
Kd6 {[%clk 0:00:18.3]} 45. g7 {[%clk 0:00:31.6]} 45... Ra8 {[%clk 0:00:17.1]}
46. f7 {[%clk 0:00:32]} 46... Ke7 {[%clk 0:00:16.9]} 47. f8=Q+ {[%clk
0:00:31.8]} 47... Rxf8 {[%clk 0:00:16.9]} 48. gxf8=Q+ {[%clk 0:00:31.7]} 48...
Kxf8 {[%clk 0:00:17.8]} 49. Kxb3 {[%clk 0:00:31.8]} 49... Ke7 {[%clk 0:00:18.7]}
50. Kc4 {[%clk 0:00:32.6]} 50... Kd6 {[%clk 0:00:19]} 51. Ne4+ {[%clk
0:00:31.9]} 51... Kc6 {[%clk 0:00:18.6]} 52. Nc3 {[%clk 0:00:32.8]} 52... Kb6
{[%clk 0:00:18.6]} 53. Nd4 {[%clk 0:00:32.9]} 53... c6 {[%clk 0:00:17.7]} 54.
Nxc6 {[%clk 0:00:32.4]} 54... Kxc6 {[%clk 0:00:17.9]} 55. b4 {[%clk 0:00:33]}
55... Kb6 {[%clk 0:00:18.8]} 56. b5 {[%clk 0:00:33.6]} 56... Kc7 {[%clk
0:00:18.8]} 57. Kc5 {[%clk 0:00:34]} 57... Kb7 {[%clk 0:00:19.7]} 58. b6 {[%clk
0:00:34.5]} 58... Kb8 {[%clk 0:00:20.6]} 59. Kc6 {[%clk 0:00:34.9]} 59... Kc8
{[%clk 0:00:21.2]} 60. b7+ {[%clk 0:00:34.5]} 60... Kb8 {[%clk 0:00:21.4]} 61.
Nd5 {[%clk 0:00:34.2]} 61... Ka7 {[%clk 0:00:20.5]} 62. Kc7 {[%clk 0:00:34.3]}
62... Ka6 {[%clk 0:00:20.8]} 63. b8=Q {[%clk 0:00:34.4]} 63... Ka5 {[%clk
0:00:21.7]} 64. Qb3 {[%clk 0:00:34.4]} 64... Ka6 {[%clk 0:00:21.1]} 65. Qb6#
{[%clk 0:00:35.3]} 1-0

[Event "Late-Titled-Tuesday-Blitz-May-14-2024"]
[Site "Chess.com"]
[Date "2024.05.14"]
[Round "1"]
[White "GMBenjaminBok"]
[Black "ATM622"]
[Result "1-0"]
[WhiteElo "3035"]
[BlackElo "2534"]
[TimeControl "180+1"]
[EndTime "14:07:40 PDT"]
[Termination "GMBenjaminBok won by resignation"]

1. d4 {[%clk 0:03:00.9]} 1... Nf6 {[%clk 0:02:59.4]} 2. c4 {[%clk 0:03:01.1]}
2... e6 {[%clk 0:02:58.9]} 3. Nc3 {[%clk 0:03:01.3]} 3... d5 {[%clk 0:02:58.5]}
4. cxd5 {[%clk 0:03:02.2]} 4... exd5 {[%clk 0:02:58.6]} 5. Bg5 {[%clk
0:03:02.2]} 5... Be7 {[%clk 0:02:58.3]} 6. e3 {[%clk 0:03:02.7]} 6... O-O {[%clk
0:02:58.1]} 7. Bd3 {[%clk 0:03:03]} 7... h6 {[%clk 0:02:58.4]} 8. Bh4 {[%clk
0:03:03.2]} 8... c6 {[%clk 0:02:56.2]} 9. Nge2 {[%clk 0:03:03.3]} 9... Re8
{[%clk 0:02:55.6]} 10. O-O {[%clk 0:03:03.4]} 10... Nbd7 {[%clk 0:02:56.1]} 11.
a4 {[%clk 0:03:03.4]} 11... Nf8 {[%clk 0:02:56.5]} 12. a5 {[%clk 0:03:01.5]}
12... Rb8 {[%clk 0:02:52.6]} 13. Qc2 {[%clk 0:02:57.3]} 13... b6 {[%clk
0:02:51.5]} 14. axb6 {[%clk 0:02:54.4]} 14... axb6 {[%clk 0:02:48.3]} 15. Rfc1
{[%clk 0:02:52.9]} 15... Ne6 {[%clk 0:02:32.9]} 16. h3 {[%clk 0:02:20.9]} 16...
Bb7 {[%clk 0:02:15.8]} 17. Ra7 {[%clk 0:02:02.7]} 17... b5 {[%clk 0:01:35.4]}
18. Bg3 {[%clk 0:01:52.6]} 18... Bd6 {[%clk 0:01:31.5]} 19. Rca1 {[%clk
0:01:46.3]} 19... Ng5 {[%clk 0:01:19.8]} 20. Bxd6 {[%clk 0:01:36.6]} 20... Qxd6
{[%clk 0:01:20.7]} 21. Ng3 {[%clk 0:01:35.5]} 21... Nfe4 {[%clk 0:01:12.3]} 22.
Ncxe4 {[%clk 0:01:32.7]} 22... dxe4 {[%clk 0:00:53.5]} 23. Nxe4 {[%clk
0:01:32.8]} 23... Nxe4 {[%clk 0:00:47.3]} 24. Bxe4 {[%clk 0:01:33.7]} 24... Qb4
{[%clk 0:00:41.8]} 25. Bf3 {[%clk 0:01:24.4]} 25... Rec8 {[%clk 0:00:40.1]} 26.
Rc1 {[%clk 0:00:48.1]} 26... g6 {[%clk 0:00:39.2]} 27. Qc3 {[%clk 0:00:42.3]}
27... Qe7 {[%clk 0:00:38.9]} 28. Qc5 {[%clk 0:00:40.9]} 28... Qf6 {[%clk
0:00:36.5]} 29. b4 {[%clk 0:00:38.7]} 29... h5 {[%clk 0:00:26.7]} 30. Qc3 {[%clk
0:00:30.9]} 30... Qd6 {[%clk 0:00:20.1]} 31. Qd2 {[%clk 0:00:28.8]} 31... Rc7
{[%clk 0:00:16.7]} 32. Rc5 {[%clk 0:00:22]} 32... Ra8 {[%clk 0:00:11.6]} 33.
Rxa8+ {[%clk 0:00:20.2]} 33... Bxa8 {[%clk 0:00:12.5]} 34. Qc3 {[%clk
0:00:18.7]} 34... Ra7 {[%clk 0:00:09.9]} 35. Bxc6 {[%clk 0:00:15.5]} 35... Bxc6
{[%clk 0:00:05.9]} 36. Rxc6 {[%clk 0:00:16.4]} 36... Ra1+ {[%clk 0:00:05.8]} 37.
Qxa1 {[%clk 0:00:16.4]} 37... Qxc6 {[%clk 0:00:06.3]} 38. Qa7 {[%clk 0:00:14]}
38... Qc1+ {[%clk 0:00:04.1]} 39. Kh2 {[%clk 0:00:14.5]} 39... Qe1 {[%clk
0:00:04.3]} 40. Qb8+ {[%clk 0:00:12]} 40... Kh7 {[%clk 0:00:04.5]} 41. Qxb5
{[%clk 0:00:11.2]} 41... Qxf2 {[%clk 0:00:03.5]} 42. Qe5 {[%clk 0:00:11.3]}
42... Qb2 {[%clk 0:00:01.9]} 43. b5 {[%clk 0:00:11.1]} 43... Kg8 {[%clk
0:00:02.2]} 44. Qb8+ {[%clk 0:00:10.7]} 44... Kh7 {[%clk 0:00:02.6]} 45. b6
{[%clk 0:00:11.6]} 45... Qb5 {[%clk 0:00:02.4]} 46. Qc7 {[%clk 0:00:09.5]} 46...
Qe2 {[%clk 0:00:02.2]} 47. Qxf7+ {[%clk 0:00:09.2]} 1-0

[Event "Late-Titled-Tuesday-Blitz-May-14-2024"]
[Site "Chess.com"]
[Date "2024.05.14"]
[Round "1"]
[White "manmanlai1"]
[Black "guineo59"]
[Result "1/2-1/2"]
[WhiteElo "2580"]
[BlackElo "2218"]
[TimeControl "180+1"]
[EndTime "14:07:40 PDT"]
[Termination "Game drawn by repetition"]

1. e4 {[%clk 0:02:59.9]} 1... e6 {[%clk 0:02:59.7]} 2. d4 {[%clk 0:02:59.4]}
2... d5 {[%clk 0:03:00.2]} 3. Nc3 {[%clk 0:02:59.5]} 3... Bb4 {[%clk 0:02:59.5]}
4. e5 {[%clk 0:02:57.4]} 4... c5 {[%clk 0:02:59.7]} 5. a3 {[%clk 0:02:56.9]}
5... Bxc3+ {[%clk 0:02:59.9]} 6. bxc3 {[%clk 0:02:57.8]} 6... Ne7 {[%clk
0:03:00]} 7. h4 {[%clk 0:02:56.9]} 7... Qc7 {[%clk 0:02:59.3]} 8. Rh3 {[%clk
0:02:54.6]} 8... b6 {[%clk 0:02:58.6]} 9. h5 {[%clk 0:02:54.3]} 9... h6 {[%clk
0:02:58.4]} 10. Bb5+ {[%clk 0:02:40.5]} 10... Kf8 {[%clk 0:02:55]} 11. Be2
{[%clk 0:02:30.3]} 11... Ba6 {[%clk 0:02:54.6]} 12. Bxa6 {[%clk 0:02:21.9]}
12... Nxa6 {[%clk 0:02:54.5]} 13. Qg4 {[%clk 0:02:14.9]} 13... cxd4 {[%clk
0:02:45.9]} 14. cxd4 {[%clk 0:02:15.8]} 14... Qxc2 {[%clk 0:02:43.1]} 15. Ne2
{[%clk 0:02:15.4]} 15... Qf5 {[%clk 0:02:32.8]} 16. Qxf5 {[%clk 0:02:06.3]}
16... Nxf5 {[%clk 0:02:32.2]} 17. a4 {[%clk 0:02:03]} 17... Ke8 {[%clk
0:02:30.7]} 18. a5 {[%clk 0:01:57.8]} 18... b5 {[%clk 0:02:30.3]} 19. Rb3 {[%clk
0:01:55.1]} 19... Rb8 {[%clk 0:02:24.1]} 20. Ba3 {[%clk 0:01:48.3]} 20... Kd7
{[%clk 0:02:23.6]} 21. g4 {[%clk 0:01:44.8]} 21... Ne7 {[%clk 0:02:23.1]} 22.
Bd6 {[%clk 0:01:43.7]} 22... Rb7 {[%clk 0:02:22]} 23. Nc3 {[%clk 0:01:42.2]}
23... b4 {[%clk 0:02:05.8]} 24. Na4 {[%clk 0:01:41]} 24... Nc6 {[%clk
0:02:04.2]} 25. Nc5+ {[%clk 0:01:32.5]} 25... Nxc5 {[%clk 0:02:04]} 26. Bxc5
{[%clk 0:01:33.4]} 26... Rc8 {[%clk 0:01:52.5]} 27. a6 {[%clk 0:01:33.1]} 27...
Rb5 {[%clk 0:01:52]} 28. f4 {[%clk 0:01:32.6]} 28... Rcb8 {[%clk 0:01:38.6]} 29.
Ke2 {[%clk 0:01:31.5]} 29... Na5 {[%clk 0:01:38.4]} 30. Rbb1 {[%clk 0:01:23.9]}
30... Nc6 {[%clk 0:01:35]} 31. Kd3 {[%clk 0:01:21]} 31... f6 {[%clk 0:01:22]}
32. Bd6 {[%clk 0:01:05.6]} 32... R8b6 {[%clk 0:01:18.7]} 33. f5 {[%clk
0:01:03.4]} 33... fxe5 {[%clk 0:01:09.6]} 34. dxe5 {[%clk 0:01:02.3]} 34... d4
{[%clk 0:01:10.5]} 35. fxe6+ {[%clk 0:00:54.3]} 35... Kxe6 {[%clk 0:01:08.2]}
36. Bf8 {[%clk 0:00:52.8]} 36... Nxe5+ {[%clk 0:01:07.2]} 37. Kxd4 {[%clk
0:00:53.3]} 37... Rd5+ {[%clk 0:01:03.1]} 38. Ke4 {[%clk 0:00:52.6]} 38... b3
{[%clk 0:01:03.2]} 39. Bxg7 {[%clk 0:00:46.9]} 39... Rb4+ {[%clk 0:01:02.8]} 40.
Ke3 {[%clk 0:00:47.3]} 40... Nxg4+ {[%clk 0:01:02.8]} 41. Kf3 {[%clk 0:00:45]}
41... Rd3+ {[%clk 0:01:00.5]} 42. Ke2 {[%clk 0:00:43.8]} 42... Rd7 {[%clk
0:01:00.1]} 43. Bc3 {[%clk 0:00:42.4]} 43... Rb6 {[%clk 0:00:53.5]} 44. Ra4
{[%clk 0:00:40.6]} 44... Nf6 {[%clk 0:00:51.6]} 45. Bd4 {[%clk 0:00:33.7]} 45...
Rbd6 {[%clk 0:00:49.6]} 46. Bxf6 {[%clk 0:00:32.2]} 46... Kxf6 {[%clk
0:00:49.6]} 47. Rxb3 {[%clk 0:00:32.7]} 47... Re6+ {[%clk 0:00:48.2]} 48. Kf3
{[%clk 0:00:31.1]} 48... Rdd6 {[%clk 0:00:48.7]} 49. Rba3 {[%clk 0:00:27.8]}
49... Re5 {[%clk 0:00:45.8]} 50. Ra5 {[%clk 0:00:28.3]} 50... Rxa5 {[%clk
0:00:43.4]} 51. Rxa5 {[%clk 0:00:27.8]} 51... Rb6 {[%clk 0:00:43.5]} 52. Ke4
{[%clk 0:00:27.8]} 52... Rb4+ {[%clk 0:00:42.6]} 53. Kd5 {[%clk 0:00:27.2]}
53... Rb6 {[%clk 0:00:41.6]} 54. Kc4 {[%clk 0:00:24.9]} 54... Rc6+ {[%clk
0:00:40.5]} 55. Kb4 {[%clk 0:00:24.9]} 55... Rb6+ {[%clk 0:00:40.4]} 56. Kc4
{[%clk 0:00:24.5]} 56... Rc6+ {[%clk 0:00:40.4]} 57. Kd4 {[%clk 0:00:25]} 57...
Rb6 {[%clk 0:00:39.9]} 58. Ke4 {[%clk 0:00:22.2]} 58... Rb4+ {[%clk 0:00:38.7]}
59. Kd5 {[%clk 0:00:22.4]} 59... Rb6 {[%clk 0:00:39.1]} 60. Kd4 {[%clk
0:00:18.9]} 60... Rb4+ {[%clk 0:00:39]} 61. Kc5 {[%clk 0:00:19.4]} 61... Rb6
{[%clk 0:00:38.8]} 62. Kc4 {[%clk 0:00:20]} 1/2-1/2

[Event "Late-Titled-Tuesday-Blitz-May-14-2024"]
[Site "Chess.com"]
[Date "2024.05.14"]
[Round "1"]
[White "GoltsevDmitry2000"]
[Black "Rdeux42"]
[Result "1-0"]
[WhiteElo "2736"]
[BlackElo "2404"]
[TimeControl "180+1"]
[EndTime "14:07:41 PDT"]
[Termination "GoltsevDmitry2000 won by resignation"]

1. e4 {[%clk 0:02:57]} 1... c5 {[%clk 0:02:55.8]} 2. Nf3 {[%clk 0:02:56.3]} 2...
Nc6 {[%clk 0:02:53.7]} 3. d4 {[%clk 0:02:54.6]} 3... cxd4 {[%clk 0:02:53.5]} 4.
Nxd4 {[%clk 0:02:55.5]} 4... Nf6 {[%clk 0:02:54.1]} 5. Nc3 {[%clk 0:02:53.3]}
5... d6 {[%clk 0:02:54.1]} 6. Be2 {[%clk 0:02:53]} 6... Nxd4 {[%clk 0:02:53.7]}
7. Qxd4 {[%clk 0:02:52.4]} 7... g6 {[%clk 0:02:54.6]} 8. e5 {[%clk 0:02:47.4]}
8... dxe5 {[%clk 0:02:53.2]} 9. Qxe5 {[%clk 0:02:46.7]} 9... Bg7 {[%clk
0:02:51.2]} 10. O-O {[%clk 0:02:43.3]} 10... O-O {[%clk 0:02:49.8]} 11. Rd1
{[%clk 0:02:42.2]} 11... Qb6 {[%clk 0:02:44.9]} 12. Be3 {[%clk 0:02:41.8]} 12...
Qe6 {[%clk 0:02:21.4]} 13. Qxe6 {[%clk 0:02:38.3]} 13... Bxe6 {[%clk 0:02:20.7]}
14. Nb5 {[%clk 0:02:38.3]} 14... Rac8 {[%clk 0:01:57.5]} 15. c3 {[%clk
0:02:29.9]} 15... a6 {[%clk 0:01:54.1]} 16. Nd4 {[%clk 0:02:29.9]} 16... Bc4
{[%clk 0:01:52.2]} 17. Bf3 {[%clk 0:02:27.5]} 17... b5 {[%clk 0:01:40.1]} 18.
Nc6 {[%clk 0:01:38]} 18... Rfe8 {[%clk 0:01:30.1]} 19. Bc5 {[%clk 0:01:31.1]}
19... Rc7 {[%clk 0:01:29.2]} 20. Bb6 {[%clk 0:01:25.7]} 20... Rb7 {[%clk
0:01:28.2]} 21. Ba5 {[%clk 0:01:22]} 21... Rd7 {[%clk 0:01:19.8]} 22. Nb4 {[%clk
0:01:14.8]} 22... e5 {[%clk 0:00:59.8]} 23. Rxd7 {[%clk 0:01:02]} 23... Nxd7
{[%clk 0:00:59.4]} 24. Bc6 {[%clk 0:01:00]} 24... Re7 {[%clk 0:00:59.1]} 25. Rd1
{[%clk 0:00:39]} 25... Nf8 {[%clk 0:00:45.1]} 26. Bd8 {[%clk 0:00:30.8]} 26...
Re6 {[%clk 0:00:42.2]} 27. b3 {[%clk 0:00:22.1]} 27... a5 {[%clk 0:00:41]} 28.
Bxa5 {[%clk 0:00:21.9]} 28... Be2 {[%clk 0:00:38.4]} 29. Rd2 {[%clk 0:00:16.6]}
29... Bh5 {[%clk 0:00:37.4]} 30. Bxb5 {[%clk 0:00:10.9]} 30... e4 {[%clk
0:00:35.8]} 31. Nd5 {[%clk 0:00:10]} 31... Bh6 {[%clk 0:00:33]} 32. Ne3 {[%clk
0:00:08.8]} 32... Re5 {[%clk 0:00:31.3]} 33. a4 {[%clk 0:00:07.8]} 33... Ne6
{[%clk 0:00:31.4]} 34. Bb6 {[%clk 0:00:07.1]} 34... Nc5 {[%clk 0:00:30.7]} 35.
a5 {[%clk 0:00:06]} 35... Nxb3 {[%clk 0:00:30.2]} 36. Rd8+ {[%clk 0:00:05.2]}
36... Kg7 {[%clk 0:00:30.7]} 37. Bc4 {[%clk 0:00:05.8]} 37... Nxa5 {[%clk
0:00:29.5]} 38. Bd4 {[%clk 0:00:04.2]} 38... Bf4 {[%clk 0:00:28.9]} 39. Bxe5+
{[%clk 0:00:04.2]} 39... Bxe5 {[%clk 0:00:29.8]} 40. Bd5 {[%clk 0:00:04.9]}
40... f5 {[%clk 0:00:29.2]} 41. Ra8 {[%clk 0:00:05.3]} 41... f4 {[%clk
0:00:29.4]} 42. Rxa5 {[%clk 0:00:05.3]} 42... fxe3 {[%clk 0:00:28.6]} 43. fxe3
{[%clk 0:00:06]} 43... Bxc3 {[%clk 0:00:28.3]} 44. Ra7+ {[%clk 0:00:06.6]} 44...
Kf6 {[%clk 0:00:28.3]} 45. Bxe4 {[%clk 0:00:06.9]} 45... Bb4 {[%clk 0:00:26.8]}
46. Rxh7 {[%clk 0:00:06.7]} 46... Bc5 {[%clk 0:00:26.8]} 47. Kf2 {[%clk
0:00:07.2]} 47... Bd1 {[%clk 0:00:26.4]} 48. Rc7 {[%clk 0:00:07.4]} 48... Bb4
{[%clk 0:00:24.1]} 49. Rc6+ {[%clk 0:00:07.5]} 49... Ke5 {[%clk 0:00:24.1]} 50.
Bxg6 {[%clk 0:00:08]} 50... Ba4 {[%clk 0:00:23.5]} 51. Rc4 {[%clk 0:00:07.5]}
1-0